Cogmind - Beta 13 @@@ ROGUE MODE // 2024.07.15 @ 19:19:13 Player: maykstuff Result: Destroyed by D-53 Grenadier with Mini Grenade Launcher Performance ------------- Evolutions (0) 0 Regions Visited (2) 400 Robots Destroyed (21) 105 Value Destroyed (427) 427 Prototype IDs (4) 80 Alien Tech Used (0) 0 Bonus (0) 0 TOTAL SCORE: 1012 Bonus ------- None Cogmind --------- Core Integrity 0/250 Matter 194/300 Energy 100/100 System Corruption 1% Temperature Cool (0) Movement Treading (160) Location -10/Mines Parts ------- > --- POWER (1) -------- (None) > --- PROPULSION (2) --- Light Treads Light Treads > --- UTILITY (2) ------ Small Storage Unit Signal Interpreter > --- WEAPON (2) ------- Autogun Autogun > --- INVENTORY (8) ---- Light Ion Engine Sensor Array Experimental Sensor Array Light Armor Plating Particle Gun Grenade Launcher Grenade Launcher Datajack Peak State ------------ > --- POWER ------------ Ion Engine > --- PROPULSION ------- Light Treads Light Treads > --- UTILITY ---------- Small Storage Unit Sensor Array > --- WEAPON ----------- Particle Gun Autogun > --- INVENTORY -------- Light Ion Engine Light Ion Engine Wheel Large Matter Pod Visual Processing Unit Light Armor Plating Autogun Grenade Launcher [Rating: 10] Favorites ----------- Power Ion Engine Engine Ion Engine Propulsion Light Treads Treads Light Treads Wheel Wheel Utility Small Storage Unit Device Sensor Array Storage Small Storage Unit Processor Signal Interpreter Protection Light Armor Plating Weapon Autogun Energy Gun Particle Gun Ballistic Gun Autogun Launcher Grenade Launcher Build | -11 -10 -10 ------- Run | Yrd Mat Min Slots Evolved . | . . . Power . | . . . Propulsion . | . . . Utility . | . . . Weapon . | . . . Parts Attached 17 | 6 9 2 Power 1 | 1 . . Engine 1 | 1 . . Core . | . . . Reactor . | . . . Propulsion 4 | 2 2 . Treads 2 | . 2 . Leg . | . . . Wheel 2 | 2 . . Hover . | . . . Flight . | . . . Utility 4 | 1 3 . Device 1 | . 1 . Storage 1 | 1 . . Processor 1 | . 1 . Hackware . | . . . Protection 1 | . 1 . Artifact . | . . . Weapon 8 | 2 4 2 Energy Gun 1 | . 1 . Energy Cannon . | . . . Ballistic Gun 5 | 2 2 1 Ballistic Cannon . | . . . Launcher 2 | . 1 1 Special Weapon . | . . . Impact Weapon . | . . . Slashing Weapon . | . . . Piercing Weapon . | . . . Special Melee Weapon . | . . . Unidentified Prototypes . | . . . Parts Lost 2 | . 1 1 Power 1 | . . 1 Propulsion 1 | . 1 . Utility . | . . . Weapon . | . . . Highest Loss Streak 1 | . 1 1 To Critical Strikes . | . . . Average Slot Usage (%) 98 | . 97 100 Engine 14 | . 14 14 Treads 21 | . 19 28 Wheel 5 | . 7 . Device 3 | . 4 . Storage 14 | . 14 14 Processor 7 | . 5 14 Protection 2 | . 3 . Energy Gun 7 | . 9 . Ballistic Gun 17 | . 17 14 Launcher 3 | . . 13 Naked Turns . | . . . Heaviest Build 17 | 14 17 16 Greatest Support 40 | 26 40 40 Greatest Overweight (x) 2 | 2 1 . Average Overweight (x) . | . . . Largest Inventory Capacity 8 | 8 8 8 Average Capacity 7 | 6 8 8 Most Carried 8 | 6 8 8 Average Carried 7 | 3 7 7 Final Capacity 8 | 8 8 8 Final Carried 8 | 6 8 8 Class Distribution -------------------- 100% | Mutant Dominant Class ---------------- Mutant | -10/Materials Mutant | -10/Mines Resources | -11 -10 -10 ----------- Run | Yrd Mat Min Matter Collected 589 | 271 318 . Remotely . | . . . Salvage Created 642 | 88 522 32 Parts 41 | 2 36 3 Haulers Intercepted 2 | . 2 . Recyclers Shooed . | . . . Parts Field Recycled . | . . . Retrieved Matter . | . . . Parts Self-Destructed . | . . . Prevented . | . . . Kills | -11 -10 -10 ------- Run | Yrd Mat Min Combat Hostiles Destroyed 14 | . 13 1 Guns 11 | . 10 1 AOE 3 | . 3 . Classes Destroyed 7 | 1 5 1 Builder 1 | . 1 . Hauler 2 | . 2 . Recycler 1 | 1 . . Watcher 3 | . 3 . Swarmer 6 | . 6 . Grunt 7 | . 7 . Demolisher 1 | . . 1 Best Kill Streak 5 | 1 5 1 Combat Bots Only 4 | . 4 1 Max Kills in Single Turn 3 | 1 3 1 Gunslinging . | . . . Exploded 2 | . 2 . Melee . | . . . Uniques/NPCs Destroyed . | . . . Combat | -11 -10 -10 -------- Run | Yrd Mat Min Hostile Shots Fired 49 | . 31 18 Missed 14 | . 12 2 Damage Taken 823 | . 208 615 Core 259 | . 18 241 Absorbed by Shields . | . . . Core Remaining (%) 100 | 100 . . Volleys Fired 46 | 6 32 8 Largest 2 | 2 2 2 Hottest 88 | 40 88 53 Shots Fired 92 | 12 64 16 Gun 86 | 12 61 13 Cannon . | . . . Launcher 6 | . 3 3 Special . | . . . Kinetic 74 | 12 49 13 Thermal 12 | . 12 . Explosive 6 | . 3 3 Electromagnetic . | . . . Robot Hit Streak 7 | 4 7 5 Robot Miss Streak 4 | 3 4 2 Penetration Max . | . . . Secondary Targets 1 | . . 1 Max Gunslinging Chain 1 | . . 1 Shots Hit Robots 46 | 6 31 9 Core Hits 33 | 1 25 7 Critical Kills 1 | . 1 . Critical Parts Destroyed . | . . . Critical Strikes 1 | . 1 . Destroy 1 | . 1 . Melee Attacks . | . . . Impact . | . . . Slashing . | . . . Piercing . | . . . Sneak Attacks . | . . . Combat Hostiles . | . . . Follow-up Attacks . | . . . Damage Inflicted 869 | 76 641 152 Guns 616 | 76 417 123 Cannons . | . . . Explosions 253 | . 224 29 Melee . | . . . Ramming . | . . . Kinetic 506 | 76 307 123 Thermal 110 | . 110 . Explosive 253 | . 224 29 Electromagnetic . | . . . Impact . | . . . Slashing . | . . . Piercing . | . . . Highest Corruption 1 | . 1 1 Average Corruption 1 | . 1 1 Corruption Purged . | . . . Corruption Blocked . | . . . Effects 8 | . 6 2 Matter Fused 1 | . 1 . Heat Flow Errors 2 | . 2 . Energy Discharges 2 | . 1 1 Data Loss (minor) 3 | . 2 1 Overload Shots . | . . . Overflow Damage . | . . . Projectiles . | . . . Explosions . | . . . Melee . | . . . Knockbacks . | . . . Impact . | . . . Kinetic . | . . . Secondary . | . . . Self-Inflicted Damage 8 | . . 8 Shots 1 | . . 1 Rammed . | . . . Targets Rammed . | . . . Kicked . | . . . Crushed . | . . . Highest Temperature 233 | . 233 24 Average Temperature 48 | . 54 9 Received Heat Transfer 93 | . 93 . Siege Activations . | . . . Robots Corrupted . | . . . Combat Hostiles . | . . . Parts Fried . | . . . Impact Corruptions . | . . . Robots Melted . | . . . Combat Hostiles . | . . . Parts Melted 1 | . 1 . Heat Transferred 259 | . 259 . Parts Sabotaged . | . . . Parts Stolen . | . . . Parts Stripped . | . . . Power Chain Reactions . | . . . Alert | -11 -10 -10 ------- Run | Yrd Mat Min Peak Influence 263 | 5 263 73 Initial 27 | . 3 27 Average 89 | . 113 29 Maximum Alert Level 1 | . 1 . Low Security (%) 87 | 100 82 100 Level 1 12 | . 17 . Level 2 . | . . . Level 3 . | . . . Level 4 . | . . . Level 5 . | . . . High Security . | . . . Max Security . | . . . Squads Dispatched 1 | . 1 . Investigation . | . . . Extermination . | . . . Reinforcement 1 | . 1 . Assault . | . . . Garrison . | . . . Intercept . | . . . Searches Triggered . | . . . Construction Impeded . | . . . Haulers Reinforced . | . . . Active Scanning Responses . | . . . Cargo Convoy Interrupts . | . . . Stealth | -11 -10 -10 --------- Run | Yrd Mat Min Distress Signals . | . . . Communications Jammed . | . . . Distress Signals . | . . . Times Spotted 23 | . 19 4 Peak Tracking Total 6 | . 6 2 Tactical Retreats 1 | . 1 . Traps | -11 -10 -10 ------- Run | Yrd Mat Min Traps Triggered . | . . . Indirectly . | . . . Trap Hack Attempts . | . . . Triggered . | . . . Disarmed . | . . . Reprogrammed . | . . . Reused . | . . . Traps Extracted . | . . . Installed . | . . . Triggered . | . . . Machines | -11 -10 -10 ---------- Run | Yrd Mat Min Machines Disabled . | . . . Max in Single Turn . | . . . Machines Repaired . | . . . Machines Dismantled . | . . . Machines Sabotaged . | . . . Overloaded Fab Kills . | . . . Hacking | -11 -10 -10 --------- Run | Yrd Mat Min Machines Accessed 6 | . 6 . Terminals 4 | . 4 . Fabricators . | . . . Repair Stations . | . . . Recycling Units 2 | . 2 . Scanalyzers . | . . . Garrison Access . | . . . Total Hacks 17 | . 17 . Successful 9 | . 9 . Failed 8 | . 8 . Catastrophic . | . . . Database Lockouts . | . . . Manual 2 | . 2 . Terminals 15 | . 15 . Fabricators . | . . . Repair Stations . | . . . Recycling Units 2 | . 2 . Scanalyzers . | . . . Garrison Access . | . . . Terminal Hacks 7 | . 7 . Prototype ID Bank 3 | . 3 . Emergency Access Points 1 | . 1 . Alert Level 1 | . 1 . Registered Components 1 | . 1 . Zone Layout 1 | . 1 . Fabricator Hacks . | . . . Repair Station Hacks . | . . . Recycling Unit Hacks 2 | . 2 . Report Inventory 2 | . 2 . Scanalyzer . | . . . Garrison Access Hacks . | . . . Unauthorized Hacks . | . . . Terminals . | . . . Fabricators . | . . . Repair Stations . | . . . Recycling Units . | . . . Scanalyzers . | . . . Garrison Access . | . . . Data Cores Recovered . | . . . Used . | . . . Hacking Detections 3 | . 3 . Full Trace Events 1 | . 1 . Feedback Events 1 | . 1 . Corruption 1 | . 1 . Feedback Blocked . | . . . Robot Schematics Acquired . | . . . Robots Built . | . . . Authchips . | . . . Time . | . . . Total Robot Build Rating . | . . . Part Schematics Acquired . | . . . Parts Built . | . . . Authchips . | . . . Time . | . . . Total Part Build Rating . | . . . Parts Repaired . | . . . Time . | . . . Parts Recycled . | . . . Recycled Matter . | . . . Retrieved Matter . | . . . Retrieved Components . | . . . Parts Scanalyzed . | . . . Part Schematics Acquired . | . . . Parts Damaged . | . . . Bothacking | -11 -10 -10 ------------ Run | Yrd Mat Min Used RIF Installer . | . . . Robots Hacked . | . . . Non-combat . | . . . Combat . | . . . Robot Hacks Applied . | . . . Relay Couplers Released . | . . . Fabnet Peak Effective % . | . . . Robots Rewired . | . . . Allies Hacked . | . . . Hacks Repelled . | . . . Allies | -11 -10 -10 -------- Run | Yrd Mat Min Total Allies . | . . . Largest Group . | . . . Highest-Rated Group . | . . . Highest-Rated Ally . | . . . Total Orders . | . . . Ally Attacks . | . . . Total Damage . | . . . Kills . | . . . Allies Corrupted . | . . . Allies Melted . | . . . Intel | -11 -10 -10 ------- Run | Yrd Mat Min Robot Analysis Total . | . . . Derelict Logs Recovered 2 | . . 2 Drone Launches . | . . . Drone Recoveries . | . . . Exploration | -11 -10 -10 ------------- Run | Yrd Mat Min Turns Passed 1414 | 83 1043 288 Spaces Moved 887 | 59 664 164 Core 12 | 12 . . Treads 599 | . 435 164 Legs . | . . . Wheels 276 | 47 229 . Hover . | . . . Flight . | . . . Fastest Speed 50 | 50 90 160 Average Speed 137 | 84 136 160 Slowest Speed 160 | 150 160 160 Overloaded Moves . | . . . Propulsion Burnouts . | . . . Robots Hopped . | . . . Cave-ins Triggered . | . . . Exploration Rate (%) 47 | 5 92 45 Regions Visited 2 Branch Regions 1 Pre-discovered Areas 1 | . . 1 Known Exits Taken 1 | . 1 . Unknown Exits Taken 1 | 1 . . Scrap Searched . | . . . Spaces Dug . | . . . Terrain Destroyed 49 | . 28 21 Melee . | . . . Projectile . | . . . AOE 49 | . 28 21 Terrain Rammed . | . . . Walls Destroyed . | . . . Machines Disabled . | . . . Actions | -11 -10 -10 --------- Run | Yrd Mat Min Total 996 | 77 743 176 Wait 22 | . 22 . Move 885 | 58 663 164 Hop . | . . . Pick Up 15 | 7 7 1 Fast Attach 8 | 5 3 . Attach 3 | 1 2 . Detach 3 | . 3 . Swap 6 | . 4 2 Drop 8 | . 7 1 Fire 46 | 6 32 8 Melee . | . . . Ram . | . . . Kick . | . . . Crush . | . . . Escape Stasis . | . . . Rewire . | . . . Trap . | . . . Miscellaneous . | . . . Route ------- -11/Scrapyard -10/Materials (discovered 5 exits: *Mat x3 / *Min x2) -10/Mines (discovered 1 exit: *Mat) History --------- Turn | Location | Event 7 | -11/Scrapyard | Discovered new exit (range 15) 84 | -11/Scrapyard | Entered Materials 300 | -10/Materials | Build established: Mutant 503 | -10/Materials | Discovered new exit (range 6) 695 | -10/Materials | Discovered new exit (range 5) 711 | -10/Materials | Identified exit to Materials 760 | -10/Materials | Discovered new exit (range 9) 773 | -10/Materials | Identified exit to Mines 874 | -10/Materials | Discovered exit to Materials (range 15) 1117 | -10/Materials | Discovered exit to Mines (range 7) 1127 | -10/Materials | Entered Mines 1167 | -10/Mines | Found a hidden stash of uninstalled traps 1187 | -10/Mines | Learned 2 Materials zone layouts 1236 | -10/Mines | Found a damaged Exp. Sensor Array with a note attached 1240 | -10/Mines | Found Prototype Device 1242 | -10/Mines | Discovered exit to Materials (range 15) 1302 | -10/Mines | Learned location of Zion (-7) 1391 | -10/Mines | Assembled infested the area 1404 | -10/Mines | Core integrity fell below 50% 1414 | -10/Mines | Core integrity fell below 20% 1415 | -10/Mines | Destroyed by D-53 Grenadier with Mini Grenade Launcher Last Messages --------------- 01400_ U-05 Engineer lays Concrete. 01401_ The unstable cave ceiling collapses. 01405_ D-53 Grenadier destroyed. 01405_ Switching to secondary target: D-53 Grenadier. 01406_ The unstable cave ceiling collapses. 01406_ U-05 Engineer lays Concrete. 01407_ The unstable cave ceiling collapses. 01407_ U-05 Engineer lays Concrete. 01408_ as-25476 powers down. 01408_ as-92742 powers down. 01408_ The unstable cave ceiling collapses. 01409_ U-05 Engineer lays Concrete. 01411_ Ion Engine destroyed. 01411_ U-05 Engineer lays Concrete. 01413_ The unstable cave ceiling collapses. 01413_ T-07 Excavator destroyed. 01413_ U-05 Engineer lays Concrete. 01414_ The unstable cave ceiling collapses. 01414_ U-05 Engineer lays Concrete. Map ----- +----------------------------------------------------+ | | | | | | | | | | | | | | | | | | | | | | | | | | | ?????????????????????????????????????????????????? | | ????????????????????????????????????????####?????? | | ??????????????????????????????????####### ###?### | | ?????????????????????????????????## #?# | | ?????????????????????????????????# #?# | | ????????????????????###??????????# #?# | | ???????????? ?????## #####?????## ### ####^^ | | ????????????aa ???# # ##?????#####?## # | | ?????????????# ## ##???????????# #### | | ??????????????# ###########?# #??## | | ????????????????""" # #?# #???## | | ??????????????? """ # #### #????? | | ??????????????? """ !|= @ d ## #????? | | ?????????????# ! *%! % u #???## | | ?????????????## =# ##### | | ??????????????## # # # < ## | | ???????????????# ?## ## # | | ???????????????# ????# ##### ##???# ## | | ???????????????# ?????# ?????##???## ### ##? | | ??????????????????????# ?????????## ##?# #?? | | ??????????????????????#t?????????# #### #?? | | ?????????????????????? ??????????# #?? | | ?????????????????????? ??????????## #### #?? | | ?????????????????????? ???????????## ##### #?? | | ?????????????????????#?????????????# ##### #?? | | ???????????????????????????????????# ##### ####?? | | ???????????????????????????????????# #????? | | ???????????????????????????????????# #######????? | | ?????????????????????????####??????# #??????????? | | ????????????????????????## ##?????# #??????????? | | ???????????????????????## ####### #??????????? | | ????????????????????#### ##?????????? | | ???????????????????## ####### #?????????? | | ???????????# ###### """ ##?????# #????????? | | ???????????# """ ##??????# #???????? | | ???????????# """ ##???????# #???????? | | ???????????########## #????????# #??????? | +----------------------------------------------------+ Best States ------------- Heat Dissipation 25 Energy Generation 10 Energy Capacity 250 Matter Stores 300 Matter Capacity 300 Sight Range 16 Robot Scan Range 14 Terrain Scan Density 10 Armor Coverage 150 Evasion (%) 50 Recoil Reduction 2 Item Schematics ----------------- None Robot Schematics ------------------ None Fabricated ------------ Nothing Alien Tech Used ----------------- None Achievements -------------- None Challenges ------------ None Game ------ Seed ArmoredIonicLink Manual? 0 Play Time 00:13:38 Cumulative 14.5 hours Start 2024.07.15 @ 19:07:08 End 2024.07.15 @ 19:19:13 Sessions 1 Manual Loads 0 Difficulty Rogue Special Mode None Game No. 31 Rogue 31 Adventurer 0 Explorer 0 Win Type - Total 0 Types 0/0/0/0/0/0/0/0/0 Lore% 13 Gallery% 16 Achievement% 16 Wizard Run 0 Options --------- Layout 1 ASCII 1 Keyboard 0 Movement Numpad Keybinds 0 Fullscreen 1 Font 24/Proggy Map View 50x35 Zoom Use 0% Tactical HUD 1 Map Filters NONE Filters NONE Steam 0 RUN: e331167d-23c9-4948-a070-d88729d85983